bitfinex/quotes_ETHUSD_20260302
["timestamp","ask_amount","ask_price","bid_price","bid_amount"]
[1772487025675,0.002,2041.5,2041.2,1.598]
[1772487026084,0.002,2041.5,2041.2,2.82276737]
[1772487027772,0.002,2041.5,2041.2,1.598]
[1772487027971,0.50055302,2041.5,2041.2,1.598]
[1772487028383,0.50055302,2041.5,2041.2,2.82276965]
[1772487030756,0.50055302,2041.5,2041.2,3.31344969]
[1772487030956,0.50055302,2041.5,2041.2,2.82376489]
[1772487031175,0.002,2041.3,2041.2,2.82376974]
[1772487032606,0.002,2041.5,2041.3,0.49068004]
[1772487032960,0.002,2041.5,2041.3,1.71536934]
[1772487033668,0.002,2041.5,2041.3,0.49068004]
[1772487033976,0.50055302,2041.5,2041.2,2.82373749]
[1772487034498,0.50055302,2041.5,2041.3,1.604]
[1772487034869,0.002,2041.5,2041.3,3.31934754]
[1772487035071,0.002,2041.8,2041.5,0.49068004]
[1772487035376,0.002,2041.8,2041.7,0.49068004]
[1772487035720,0.50055302,2041.8,2041.3,1.2246675]
[1772487035885,0.50055302,2041.8,2041.3,1.606]
[1772487036805,0.49855302,2041.6,2041.3,1.606]
[1772487036967,1.72306221,2041.7,2041.3,1.606]
[1772487037672,0.49855302,2041.6,2041.3,1.606]
[1772487038617,0.49855302,2041.4,2041.2,0.001]
[1772487039099,1.7232364,2041.4,2041.2,0.001]
[1772487039893,0.49855302,2041.4,2041.2,0.001]
[1772487040086,1.7232068,2041.4,2041.2,0.001]
[1772487040904,4.89835976,2041.5,2041.2,0.001]
[1772487041107,0.49855302,2041.4,2041.2,0.001]
[1772487041496,0.002,2041.8,2041.2,0.49168004]
[1772487041497,1.72498546,2041.8,2041.2,0.49168004]
[1772487041703,0.49855302,2041.7,2041.2,0.49168004]
[1772487041912,0.97862273,2041.7,2041.2,0.001]
[1772487042102,0.49855302,2041.6,2041.2,0.001]
[1772487043613,1.72314278,2041.5,2041.2,0.001]
[1772487045222,0.49855302,2041.5,2041.2,0.001]
[1772487045791,0.49855302,2041.5,2041.4,0.001]
[1772487046113,0.50055302,2041.5,2041.4,0.001]
[1772487046314,1.72514278,2041.5,2041.4,0.001]
[1772487046520,0.49855302,2041.4,2041.2,0.001]
[1772487047091,0.49855302,2041.2,2041.0,0.001]
[1772487047694,1.72336599,2041.2,2041.0,0.001]
[1772487048317,1.22475621,2041.3,2041.0,0.001]
[1772487048521,1.67786132,2041.4,2041.0,0.001]
[1772487048696,0.45316258,2041.3,2041.0,0.001]
[1772487050821,1.67793232,2041.2,2041.0,0.001]
[1772487051027,0.45316258,2041.1,2041.0,0.001]
[1772487052828,1.67799232,2041.1,2041.0,0.001]
[1772487054799,1.67799232,2041.1,2040.5,0.001]
[1772487054800,0.45316258,2041.0,2040.5,0.001]
[1772487055005,1.17351115,2040.6,2040.3,0.001]
[1772487055208,0.45316258,2040.8,2040.3,0.4646619]
[1772487055714,2.15934857,2041.0,2040.3,0.4646619]
[1772487055938,0.45316258,2040.9,2040.3,0.4646619]
[1772487056510,1.67799232,2041.1,2040.6,0.4636619]
[1772487057011,0.45316258,2041.0,2040.6,0.4636619]
[1772487057216,0.45316258,2041.0,2040.3,1.68996974]
[1772487057411,0.45316258,2040.9,2040.3,0.4646619]
[1772487057638,0.45316258,2040.9,2040.3,1.6899662]
[1772487058137,4.89916837,2041.2,2040.4,0.4636619]
[1772487058308,1.22476974,2041.2,2040.6,0.4636619]
[1772487058613,1.67793232,2041.2,2040.6,0.4636619]
[1772487059125,1.67993232,2041.2,2040.7,0.4636619]
[1772487059436,1.22676974,2041.2,2040.7,0.4636619]
[1772487060523,0.002,2041.4,2040.7,0.4636619]
[1772487060524,0.002,2041.4,2041.0,0.4636619]
[1772487060873,0.45316258,2041.3,2040.7,0.4636619]
[1772487061152,1.67793232,2041.2,2040.7,0.4636619]
[1772487061326,0.45316258,2041.1,2040.7,1.68873146]
[1772487061524,0.45316258,2041.1,2040.7,0.4636619]
[1772487062044,0.45316258,2041.1,2040.7,1.68871665]
[1772487062561,0.45316258,2041.2,2040.7,0.4636619]
[1772487062727,1.22475369,2041.3,2040.8,0.4636619]
[1772487063128,1.22475369,2041.3,2040.8,1.68865668]
[1772487063496,1.67791627,2041.3,2040.8,1.68865668]
[1772487063641,1.67791627,2041.3,2040.9,0.4636619]
[1772487064646,0.45316258,2041.2,2040.7,0.4636619]
[1772487065252,1.67799232,2041.1,2040.5,1.22616985]
[1772487065552,1.67799232,2041.1,2040.5,1.68983175]
[1772487065726,1.67799232,2041.1,2040.6,0.4636619]
[1772487067456,1.22482974,2041.1,2040.6,0.4636619]
[1772487067659,1.67799232,2041.1,2040.6,0.4636619]
[1772487068058,1.22482974,2041.1,2040.6,0.4636619]
[1772487068446,1.22482974,2041.1,2040.7,0.4636619]
[1772487068756,1.22482363,2041.2,2040.7,0.4636619]
[1772487069162,0.45316258,2041.1,2040.5,1.22616963]
[1772487069351,1.22488975,2041.0,2040.6,0.4636619]
[1772487070354,1.67805233,2041.0,2040.5,0.001]
[1772487070680,1.22487334,2041.1,2040.5,0.4646619]
[1772487071168,1.67803592,2041.1,2040.5,0.4646619]
[1772487071543,1.445,2041.3,2040.8,0.4646619]
[1772487071741,0.002,2041.1,2040.8,0.4646619]
[1772487072928,0.45316258,2041.0,2040.8,0.001]
[1772487073160,0.45316258,2041.0,2040.5,0.001]
[1772487073555,0.45316258,2040.8,2040.5,0.001]
[1772487075249,1.22494977,2040.9,2040.5,0.001]
[1772487075649,1.67811235,2040.9,2040.5,0.001]
[1772487075850,0.45316258,2040.8,2040.5,0.001]
[1772487076949,1.22494977,2040.9,2040.5,0.46546346]
[1772487077136,1.6991174,2040.9,2040.5,0.46546346]
[1772487077337,0.47416763,2040.8,2040.5,0.001]
[1772487077948,1.71189786,2040.7,2040.5,0.001]
[1772487079667,0.48682804,2040.6,2040.3,0.001]
[1772487080662,0.48682804,2040.4,2040.3,0.001]
[1772487080864,1.71200677,2040.6,2040.3,0.001]
[1772487081672,0.48682804,2040.5,2040.3,0.001]
[1772487083773,1.22502899,2040.8,2040.4,0.46317435]
[1772487084064,1.22502899,2040.8,2040.5,0.001]
[1772487084065,1.71185703,2040.8,2040.5,0.001]
[1772487084255,0.48682804,2040.5,2040.0,0.001]
[1772487084458,0.48682804,2040.3,2040.0,0.001]
[1772487084855,0.002,2040.7,2040.0,0.46417435]
[1772487084856,0.48682804,2040.5,2040.0,0.46417435]
[1772487085867,1.22524995,2040.4,2040.0,1.68965542]
[1772487086062,0.48682804,2040.3,2040.0,0.001]
[1772487087269,1.22517351,2040.6,2040.1,0.46317435]
[1772487087470,0.48882804,2040.7,2040.1,0.46317435]
[1772487087471,1.2270755,2040.7,2040.1,0.46317435]
[1772487088345,0.72034857,2040.6,2040.1,0.46317435]
[1772487088647,0.48682804,2040.6,2040.1,0.46317435]
[1772487089055,0.48682804,2040.5,2040.0,0.001]
[1772487089266,0.72034857,2040.4,2040.0,0.001]
[1772487089463,0.48682804,2040.3,2040.0,0.001]
[1772487089843,0.48682804,2040.1,2039.7,0.001]
[1772487090557,1.22549019,2040.0,2039.7,0.001]
[1772487090760,3.36641816,2040.5,2039.7,0.46417435]
[1772487090761,0.48682804,2040.5,2039.7,0.46417435]
[1772487091066,3.17007799,2040.4,2039.7,0.46417435]
[1772487091443,0.48682804,2040.4,2039.7,0.46417435]
[1772487091649,1.22523809,2040.5,2039.7,0.46417435]
[1772487091976,1.71206613,2040.5,2039.7,0.46417435]
[1772487092764,0.48682804,2040.6,2039.9,0.46317435]
[1772487093283,1.22710299,2040.7,2039.9,0.46317435]
[1772487093650,1.71393103,2040.7,2039.9,0.46317435]
[1772487093851,0.48682804,2040.6,2039.9,0.46317435]
[1772487095256,1.71201794,2040.5,2040.0,1.22549019]
[1772487096002,0.48682804,2040.4,2039.9,1.68868185]
[1772487096388,0.48682804,2040.4,2040.0,0.001]
[1772487097495,1.71207895,2040.4,2040.0,0.001]
[1772487099166,1.71207895,2040.4,2040.0,0.46417435]
[1772487099660,1.22525146,2040.4,2040.0,1.68963529]
[1772487101696,0.48882804,2040.5,2040.0,1.68963529]
[1772487102098,0.002,2040.5,2040.1,0.46317435]
[1772487102602,0.002,2040.7,2040.2,0.46317435]
[1772487103098,0.002,2040.7,2040.3,0.46317435]
[1772487103797,0.002,2040.7,2040.5,0.46317435]
[1772487106586,0.002,2040.7,2040.5,1.22514527]
[1772487107276,0.002,2040.7,2040.6,0.46317435]
[1772487107682,0.002,2041.0,2040.6,0.46317435]
[1772487108375,0.002,2040.7,2040.6,0.46317435]
[1772487110901,0.002,2040.7,2040.6,1.68830421]
[1772487114910,0.002,2040.7,2040.6,1.22512986]
[1772487115102,0.002,2040.7,2040.5,0.46177826]
[1772487115986,0.002,2041.0,2040.6,0.46177826]
[1772487116810,1.22689951,2041.0,2040.6,0.46177826]
[1772487117009,0.002,2041.0,2040.6,1.68686084]
[1772487117690,0.46211874,2041.0,2040.6,1.68686084]
[1772487119083,0.46011874,2040.8,2040.4,1.68700358]
[1772487119379,0.46011874,2040.8,2040.4,3.30200358]
[1772487119609,0.002,2041.0,2040.5,0.46177826]
[1772487120124,0.002,2041.0,2040.8,0.001]
[1772487120797,0.46211874,2041.0,2040.8,0.001]
[1772487121514,0.002,2041.0,2040.8,0.001]
[1772487121729,0.002,2041.1,2040.9,0.46177826]
[1772487123618,0.002,2041.1,2040.8,1.68776772]
[1772487124107,0.002,2041.1,2040.8,0.46277826]
[1772487124490,0.002,2041.1,2040.8,1.68778522]
[1772487125421,1.22488975,2041.0,2040.8,0.001]
[1772487126319,1.22488975,2041.0,2040.8,0.46277826]
[1772487126616,5.38176351,2041.1,2040.8,0.46277826]
[1772487126617,1.70729026,2041.1,2040.8,0.46277826]
[1772487126991,1.22687911,2041.1,2040.8,0.46277826]
[1772487127744,0.002,2041.3,2041.1,0.46177826]
[1772487127933,0.002,2041.6,2041.3,0.46177826]
[1772487128300,1.22654154,2041.6,2041.3,0.46177826]
[1772487128913,1.68666028,2041.6,2041.1,0.46177826]
[1772487129837,0.46211874,2041.6,2041.2,1.22476974]
[1772487130025,1.6866488,2041.6,2041.2,1.22476974]
[1772487130999,0.46011874,2041.5,2041.1,0.46177826]
[1772487132035,0.46011874,2041.5,2041.1,1.68660755]
[1772487132205,1.68473651,2041.5,2041.1,1.68660755]
[1772487132809,0.46011874,2041.5,2041.1,1.68660755]
[1772487133030,0.002,2041.6,2041.2,0.46177826]
[1772487133835,0.002,2041.3,2041.2,0.46177826]
[1772487135220,0.002,2041.3,2041.2,1.686548]
[1772487137629,0.002,2041.3,2041.2,0.46177826]
[1772487138015,0.002,2041.3,2041.2,1.686548]
[1772487138930,0.002,2041.3,2041.2,0.46177826]
[1772487139455,0.002,2041.3,2041.0,4.90043403]
[1772487139456,0.45620599,2041.2,2041.0,0.001]
[1772487141212,0.002,2041.3,2041.0,0.48563465]
[1772487141416,0.002,2041.7,2041.2,0.48463465]
[1772487141735,0.002,2041.7,2041.4,1.22464975]
[1772487141927,0.002,2041.7,2041.4,1.7092844]
[1772487142648,0.002,2041.8,2041.6,0.48463465]
[1772487142849,0.45620599,2042.4,2041.8,0.48463465]
[1772487143022,0.002,2042.3,2042.0,0.48463465]
[1772487143223,0.002,2042.5,2042.0,0.48463465]
[1772487143646,0.002,2042.5,2041.9,0.48041115]
[1772487143647,0.002,2042.5,2042.2,0.4601455]
[1772487143953,4.89536904,2042.8,2042.3,0.9650458]
[1772487143954,0.45620599,2042.8,2042.3,0.9650458]
[1772487144154,1.456,2042.9,2042.5,0.9650458]
[1772487144446,0.45620599,2043.0,2042.5,0.9650458]
[1772487144624,0.45620599,2042.9,2042.5,0.48463465]
[1772487145843,1.22369736,2043.0,2042.5,1.70861371]
[1772487146070,1.22369736,2043.0,2042.5,0.48463465]
[1772487146234,1.67990335,2043.0,2042.5,0.48463465]
[1772487146821,1.67990335,2043.0,2042.6,0.48463465]
[1772487150019,1.22351098,2043.3,2042.7,0.48463465]
[1772487150218,5.34990443,2043.5,2043.0,0.48463465]
[1772487151038,0.45620599,2043.4,2043.0,0.48463465]
[1772487151436,4.89335004,2043.6,2043.0,0.48463465]
[1772487151629,1.22333137,2043.6,2043.0,0.48463465]
[1772487152235,1.22333137,2043.6,2043.1,0.48463465]
[1772487154535,1.67953736,2043.6,2043.1,0.48463465]
[1772487154736,1.22333137,2043.6,2043.1,0.48463465]
[1772487155252,1.22333137,2043.6,2043.1,0.46014805]
[1772487155649,1.44566694,2043.7,2043.2,0.48463465]
[1772487156229,2.66894788,2043.7,2043.2,0.48463465]
[1772487156549,1.67959723,2043.5,2043.0,0.48463465]
[1772487156855,0.45620599,2043.4,2042.8,0.48463465]
[1772487158560,0.45820599,2043.4,2042.8,0.48463465]
[1772487158751,1.67971697,2043.3,2042.8,0.48463465]
[1772487159462,0.45620599,2043.3,2042.9,0.48463465]
[1772487159853,0.002,2043.4,2042.9,0.48463465]
[1772487160639,1.22545175,2043.4,2042.9,0.48463465]
[1772487160843,0.002,2043.4,2043.0,0.48463465]
[1772487163940,0.45820599,2043.4,2043.0,0.48463465]
[1772487164143,0.45820599,2043.4,2043.0,1.70831917]
[1772487164770,0.45820599,2043.4,2043.0,0.48463465]
[1772487164981,0.45820599,2043.4,2043.0,1.70831804]
[1772487165963,0.002,2043.4,2043.1,0.48463465]
[1772487167956,0.002,2043.4,2043.1,1.70821579]
[1772487169558,0.002,2043.4,2043.2,0.49542843]
[1772487169859,0.002,2043.4,2043.0,4.8946262]
[1772487169860,0.002,2043.4,2043.0,0.49542843]
[1772487170260,0.49679364,2043.4,2043.0,1.71910967]
[1772487170993,0.002,2043.4,2043.1,0.49542843]
[1772487172056,0.002,2043.4,2043.3,0.001]
[1772487172361,1.7203645,2043.2,2042.7,0.49642843]
[1772487172556,0.002,2043.2,2043.0,0.001]
[1772487173859,0.49679364,2043.2,2042.8,0.001]
[1772487174071,0.49679364,2043.2,2042.8,0.49642843]
[1772487174272,0.49679364,2043.2,2042.8,0.001]
[1772487174684,1.72039963,2043.2,2042.8,0.001]
[1772487175965,0.49479364,2043.1,2042.8,0.001]
[1772487176288,0.49479364,2042.9,2042.5,0.001]
[1772487176873,1.22381045,2042.8,2042.5,0.001]
[1772487177074,1.71860409,2042.8,2042.5,0.001]
[1772487177300,0.49479364,2042.7,2042.5,0.001]
[1772487178763,0.49479364,2042.7,2042.2,0.001]
[1772487178962,0.49479364,2042.5,2042.2,0.001]
[1772487180298,0.49479364,2042.5,2041.5,0.49542843]
[1772487181171,1.71884377,2042.4,2041.7,0.49542843]
[1772487183875,1.71884377,2042.4,2041.8,1.71983826]
[1772487184190,0.49479364,2042.3,2041.8,1.71983826]
[1772487184497,0.49479364,2042.3,2041.8,0.49542843]
[1772487184680,0.49479364,2042.3,2041.7,1.22442049]
[1772487184887,0.49479364,2042.3,2041.7,1.71984892]
[1772487185592,0.49479364,2042.3,2041.8,0.49542843]
[1772487186097,1.71894084,2042.3,2041.8,1.71980301]
[1772487186490,1.71894084,2042.3,2041.9,0.001]
[1772487187186,0.002,2042.2,2041.9,0.001]
[1772487187498,0.002,2042.2,2041.9,0.49642843]
[1772487188200,0.002,2042.2,2041.9,1.72077343]
[1772487188979,0.002,2042.2,2041.9,1.225345]
[1772487189380,0.002,2042.2,2041.9,1.72077343]
[1772487189579,0.002,2042.2,2042.0,0.49542843]
[1772487191302,0.002,2042.2,2042.0,1.71971655]
[1772487192902,0.002,2042.2,2042.1,0.49542843]
[1772487194809,0.002,2042.2,2041.9,4.8982598]
[1772487194810,0.49679364,2042.2,2041.9,0.001]
[1772487195029,0.002,2042.2,2041.9,0.49642843]
[1772487195602,1.72085275,2042.4,2042.0,0.49542843]
[1772487195603,0.002,2042.4,2042.0,0.49542843]
[1772487195800,0.002,2042.7,2042.0,0.49542843]
[1772487197427,0.46665487,2042.7,2042.2,0.48390399]
[1772487198524,0.002,2042.7,2042.2,0.48390399]
[1772487200108,0.002,2042.5,2042.3,1.68227094]
[1772487201102,0.002,2042.5,2042.4,0.45816087]
[1772487202419,0.002,2042.7,2042.5,0.45816087]
[1772487204308,0.002,2042.7,2042.3,0.45816087]
[1772487205827,0.002,2043.0,2042.5,0.45816087]
[1772487207516,0.002,2043.0,2042.7,0.45816087]
[1772487209804,0.002,2043.0,2042.8,1.22381045]
[1772487210031,0.002,2043.0,2042.9,0.45816087]
[1772487210911,5.6129007,2043.5,2042.8,1.22381045]
[1772487210912,0.49225362,2043.6,2043.0,0.45816087]
[1772487211212,2.66894463,2043.7,2043.1,0.45816087]
[1772487211611,1.44566694,2043.7,2043.1,0.45816087]
[1772487211834,2.66894296,2043.7,2043.3,0.45816087]
[1772487212840,1.44566694,2043.7,2043.3,0.45816087]
[1772487213910,1.44566694,2043.7,2043.4,1.68161198]
[1772487214220,1.93792056,2043.7,2043.3,1.22346482]
[1772487215852,1.44566694,2043.7,2043.4,0.45816087]
[1772487216725,0.49225362,2043.6,2043.1,1.22363075]
[1772487217047,0.49225362,2043.6,2043.1,1.68179162]
[1772487218453,0.49225362,2043.5,2043.1,1.68179162]
[1772487219550,0.49225362,2043.5,2042.9,0.45816087]
[1772487220053,1.93792056,2043.7,2043.0,0.71932528]
[1772487220255,1.93792056,2043.7,2043.1,0.45816087]
[1772487220951,1.93792056,2043.7,2043.3,0.45816087]
[1772487223353,1.44566694,2043.7,2043.4,1.68161198]
[1772487223960,1.44566694,2043.7,2043.4,0.45816087]
[1772487224168,1.93792056,2043.7,2043.4,0.45816087]
[1772487224483,1.93792056,2043.7,2043.3,1.22346366]
[1772487224484,1.30074498,2043.7,2043.5,0.45816087]
[1772487224658,1.30074498,2043.7,2043.5,0.45916087]
[1772487225233,1e-08,2043.7,2043.5,0.45916087]
[1772487225464,0.00200001,2043.7,2043.6,1.22333137]
[1772487225637,0.00200001,2043.7,2043.6,1.68149224]
[1772487227166,0.49425363,2043.7,2043.0,1.639]
[1772487227370,0.49225362,2043.4,2043.1,0.001]
[1772487227864,0.49225362,2043.4,2043.0,1.639]
[1772487228031,0.49225362,2043.4,2043.0,1.64]
[1772487228634,0.49225362,2043.4,2043.0,2.86368539]
[1772487228947,0.49225362,2043.4,2043.0,1.64]
[1772487229337,0.49225362,2043.4,2043.0,0.002]
[1772487229338,0.49498454,2043.3,2043.0,0.002]
[1772487229662,1.7185554,2043.2,2043.0,0.001]
[1772487231252,0.49498454,2043.1,2043.0,0.001]
[1772487231648,1.71861529,2043.1,2043.0,0.001]
[1772487232576,0.49498454,2043.1,2043.0,0.001]
[1772487232758,1.71861529,2043.1,2043.0,0.001]
[1772487233472,0.49498454,2043.0,2042.5,0.46644866]
[1772487233643,0.49498454,2043.0,2042.8,0.001]
[1772487233841,1.22375055,2042.9,2042.5,0.46644866]
[1772487234041,1.22375055,2042.9,2042.4,0.001]
[1772487234042,0.49498454,2042.8,2042.4,0.001]
[1772487234654,1.70333236,2042.9,2042.2,0.001]
[1772487234655,0.49498454,2042.6,2042.2,0.001]
[1772487234982,0.47958181,2042.7,2042.2,0.001]
[1772487234983,0.49498454,2042.4,2042.2,0.001]
[1772487235151,1.97798454,2042.8,2042.2,0.46744866]
[1772487235355,0.49498454,2042.7,2042.2,0.001]
[1772487236372,1.71891482,2042.6,2042.2,0.001]
[1772487236770,1.22393028,2042.6,2042.2,0.46744866]
[1772487236977,1.71891482,2042.6,2042.2,0.46744866]
[1772487238601,1.71891482,2042.6,2042.4,0.001]
[1772487239945,0.49498454,2042.6,2042.4,0.001]
[1772487240149,1.71892035,2042.6,2042.4,0.001]
[1772487241189,0.49498454,2042.6,2042.4,0.001]
[1772487241352,1.22379828,2042.9,2042.4,0.46744866]
[1772487241553,1.22379828,2042.9,2042.5,0.46644866]
[1772487242182,0.49498454,2042.9,2042.5,0.46644866]
[1772487242366,0.49498454,2042.9,2042.4,0.48058181]
[1772487242367,0.49498454,2042.9,2042.4,0.001]
[1772487242758,1.22381045,2042.8,2042.4,0.46744866]
[1772487242963,1.22378905,2042.9,2042.4,0.46744866]
[1772487245374,1.22365128,2043.1,2042.6,0.46644866]
[1772487245747,1.71863582,2043.1,2042.6,0.46644866]
[1772487246759,4.89632158,2043.2,2042.6,0.46644866]
[1772487246760,1.72055604,2043.2,2042.6,0.46644866]
[1772487246971,0.49498454,2043.1,2042.6,0.46644866]
[1772487247366,0.49498454,2043.1,2042.6,1.69033456]
[1772487247568,0.002,2043.2,2042.8,0.46644866]
[1772487250684,0.002,2043.2,2042.9,0.46644866]
[1772487251073,0.002,2043.1,2042.9,0.46644866]
[1772487251600,0.002,2043.2,2042.9,0.46644866]
[1772487251805,0.002,2043.2,2043.0,1.64]
[1772487252091,0.002,2043.2,2042.9,0.46644866]
[1772487252677,0.002,2043.2,2043.0,1.22369065]
[1772487252868,0.002,2043.2,2043.0,1.69013931]
[1772487253971,0.002,2043.2,2043.1,0.46644866]
[1772487254790,0.002,2043.4,2043.2,0.46644866]
[1772487255161,0.002,2043.4,2043.3,0.46644866]
[1772487256589,0.002,2043.4,2043.3,1.68995964]
[1772487256794,0.48799391,2043.4,2042.9,2.86771901]
[1772487256977,0.48799391,2043.4,2042.9,3.34608716]
[1772487257495,0.48799391,2043.4,2042.6,1.22492825]
[1772487257998,0.48799391,2043.4,2042.7,0.48327401]
[1772487259604,0.48799391,2043.4,2042.7,1.22382073]
[1772487259605,0.45629241,2043.2,2042.7,1.22382073]
[1772487260597,0.45629241,2043.2,2042.6,1.7081671]
[1772487261094,0.45629241,2043.2,2042.6,0.48427401]
[1772487261299,0.45629241,2043.2,2042.6,1.70820316]
[1772487261688,1.67992316,2043.1,2042.6,1.70820316]
[1772487262497,0.002,2043.2,2042.7,0.48327401]
[1772487263769,0.002,2043.2,2042.8,1.22381045]
[1772487263970,0.002,2043.2,2042.9,0.48327401]
[1772487264508,0.45829241,2043.2,2042.7,2.86682067]
[1772487265013,0.45829241,2043.2,2042.6,0.001]
[1772487266012,1.22363075,2043.1,2042.6,0.48427401]
[1772487266507,0.002,2043.2,2042.6,0.48427401]
[1772487266710,0.002,2043.2,2042.8,0.48327401]
[1772487270376,0.002,2043.2,2043.0,0.48327401]
[1772487270605,0.002,2043.4,2043.0,0.48327401]
[1772487272282,0.00200001,2043.7,2043.2,0.48327401]
[1772487272484,0.00200001,2043.7,2043.4,0.48327401]
[1772487273572,0.00200001,2043.7,2043.3,2.86651098]
[1772487273777,0.00200001,2043.7,2043.3,3.34978499]
[1772487274503,0.00200001,2043.7,2043.4,0.48327401]
[1772487275519,0.45829242,2043.7,2043.0,1.22369065]
[1772487275681,0.45829242,2043.7,2042.9,1.22471317]
[1772487276479,0.45629241,2043.5,2042.9,1.22471317]
[1772487277280,0.93553758,2043.4,2043.0,0.48327401]
[1772487277480,0.45629241,2043.3,2043.0,0.48327401]
[1772487278517,1.67983038,2043.3,2043.0,0.48327401]
[1772487279406,0.45629241,2043.2,2042.9,0.001]
[1772487279596,1.22353797,2043.3,2042.9,0.33435205]
[1772487279597,1.67981946,2043.3,2042.9,0.33435205]
[1772487280021,1.22352705,2043.3,2042.9,0.81762606]
[1772487280224,5.34998138,2043.5,2042.9,2.04135534]
[1772487280592,1.22339124,2043.6,2042.9,2.04135534]
[1772487280593,1.22338004,2043.6,2043.0,0.48327401]
[1772487280815,0.45629241,2043.5,2043.0,0.48327401]
[1772487281015,0.45629241,2043.5,2042.9,1.22472928]
[1772487281232,0.45629241,2043.5,2043.0,0.48327401]
[1772487284613,1.67971175,2043.5,2043.0,1.70690982]
[1772487284818,0.45629241,2043.5,2043.0,1.70690982]
[1772487284986,1.67969308,2043.5,2043.0,1.70690982]
[1772487286120,1.67969308,2043.5,2043.1,0.33335205]
[1772487286493,1.67969308,2043.5,2043.2,0.001]
[1772487286695,1.68169308,2043.5,2043.2,0.001]
[1772487286918,0.45829241,2043.5,2043.2,0.001]
[1772487287302,1.68168675,2043.5,2043.2,0.001]
[1772487287710,0.002,2043.5,2043.2,0.001]
[1772487288224,0.002,2043.5,2043.3,0.33335205]
[1772487290016,0.002,2043.5,2043.3,1.55683144]
[1772487290226,0.002,2043.5,2043.3,0.33335205]
[1772487290522,0.48549501,2043.5,2043.2,0.001]
[1772487290705,0.48549501,2043.5,2043.0,0.001]
[1772487292524,0.48349501,2043.3,2043.0,0.001]
[1772487294324,1.7089288,2043.5,2043.0,0.47512051]
[1772487294514,1.7089288,2043.5,2043.0,1.69877101]
[1772487294718,1.7089288,2043.5,2043.0,0.47512051]
[1772487295018,0.48349501,2043.4,2043.0,0.47512051]
[1772487295228,0.48349501,2043.4,2043.0,0.001]
[1772487295428,0.48349501,2043.4,2043.0,0.47512051]
[1772487296809,1.70700131,2043.4,2043.0,0.47512051]
[1772487299639,0.48349501,2043.3,2043.0,0.47512051]
[1772487300305,0.48349501,2043.3,2043.2,0.001]
[1772487300541,0.48549501,2043.3,2043.2,0.001]
[1772487301010,0.48349501,2043.2,2042.9,0.001]
[1772487301527,1.70712576,2043.1,2042.9,0.001]
[1772487301756,0.48349501,2043.0,2042.9,0.001]
[1772487302104,0.48349501,2043.0,2042.6,0.001]
[1772487302305,0.48349501,2043.0,2042.6,0.002]
[1772487303005,1.22363075,2043.1,2042.6,1.70002282]
[1772487303223,1.70712576,2043.1,2042.6,1.70002282]
[1772487303529,1.22375055,2042.9,2042.6,0.002]
[1772487303829,1.70724556,2042.9,2042.6,0.002]
[1772487304032,0.48349501,2042.9,2042.6,0.002]
[1772487306742,0.48349501,2042.8,2042.4,0.001]
[1772487309509,0.48349501,2042.6,2042.4,0.001]
[1772487309841,1.22387036,2042.7,2042.1,0.47512051]
[1772487309842,0.48349501,2042.4,2042.1,0.001]
[1772487310135,0.48349501,2042.6,2042.1,0.47512051]
[1772487312037,1.2239902,2042.5,2042.1,0.47512051]
[1772487312234,1.70748521,2042.5,2042.1,0.47512051]
[1772487312638,1.70748521,2042.5,2042.3,0.001]
[1772487314756,1.70748521,2042.5,2041.4,0.47512051]
[1772487314757,0.48349501,2042.3,2041.4,0.47512051]
[1772487315058,1.20242795,2041.9,2041.5,0.47412051]
[1772487315258,0.48349501,2041.6,2041.4,0.001]
[1772487315457,0.48349501,2041.6,2041.2,0.001]
[1772487315649,0.48349501,2041.8,2041.2,0.47512051]
[1772487315962,0.48349501,2041.8,2041.3,0.47412051]
[1772487316655,1.22434987,2041.9,2041.5,0.47875796]
[1772487317833,0.793,2042.3,2041.5,0.47875796]
[1772487318147,1.22411007,2042.3,2041.5,0.47875796]
[1772487318660,1.69268674,2042.3,2041.5,0.47875796]
[1772487321258,1.69268674,2042.3,2041.7,0.46329747]
[1772487322338,0.46857667,2042.2,2041.7,0.46329747]
[1772487324863,1.69278027,2042.2,2041.8,0.46329747]
[1772487325168,1.22413909,2042.3,2041.8,0.46329747]
[1772487325851,0.002,2042.1,2041.8,0.46329747]
[1772487326767,0.002,2042.3,2041.9,0.46329747]
[1772487327160,0.002,2042.3,2042.1,0.46329747]
[1772487328883,0.002,2042.9,2042.3,0.46329747]
[1772487329036,0.002,2042.9,2042.4,0.71893294]
[1772487329240,0.002,2042.9,2042.6,1.68722775]
[1772487329774,0.002,2042.9,2042.7,0.46329747]
[1772487331160,0.002,2042.9,2042.7,1.22381228]
[1772487331492,0.002,2042.9,2042.8,0.46329747]
[1772487331649,0.002,2043.2,2042.8,0.46329747]
[1772487333455,0.002,2043.2,2042.9,0.46329747]
[1772487335877,0.002,2043.2,2042.9,1.68701499]
[1772487336052,0.002,2043.2,2043.0,0.46329747]
[1772487336952,0.002,2043.3,2043.0,0.46329747]
[1772487337148,0.002,2043.5,2043.0,0.46329747]
[1772487337665,0.002,2043.5,2043.2,0.46329747]
[1772487338284,0.002,2043.5,2043.3,0.46329747]
[1772487338685,0.002,2043.5,2043.1,0.001]
[1772487338686,0.46857667,2043.4,2043.1,0.001]
[1772487339055,0.47057667,2043.2,2043.1,0.001]
[1772487340175,1.69414753,2043.2,2043.1,0.001]
[1772487342354,0.46857667,2043.1,2042.7,0.46329747]
[1772487342558,0.46857667,2043.1,2042.6,0.001]
[1772487342792,0.46857667,2043.1,2042.6,0.46429747]
[1772487344976,1.22369065,2043.0,2042.6,0.46429747]
[1772487346489,0.46857667,2042.9,2042.6,0.001]
[1772487346689,1.22369065,2043.0,2042.6,0.46429747]
[1772487347494,1.71509965,2043.0,2042.6,0.46429747]
[1772487348002,0.491409,2042.9,2042.6,0.001]
[1772487348772,4.89629313,2043.2,2042.6,0.001]
[1772487348773,0.002,2043.2,2042.8,0.49961785]
[1772487348982,1.22557403,2043.2,2042.8,0.49961785]
[1772487349192,0.491409,2043.1,2042.6,2.14661785]
[1772487349567,1.22557403,2043.2,2042.7,0.49961785]
[1772487349791,0.491409,2043.1,2042.6,2.87092929]